bitfinex/quotes_ETHUSD_20250328
["timestamp","ask_amount","ask_price","bid_price","bid_amount"]
[1743191692119,0.05,1879.9,1879.6,6.900128]
[1743191692531,3.90333297,1879.9,1879.6,1.580058]
[1743191692730,9.17314297,1879.8,1879.7,5.161]
[1743191692913,3.85333297,1879.8,1879.7,5.161]
[1743191693639,9.17304297,1879.8,1879.7,5.161]
[1743191694034,9.22283297,1879.9,1879.7,5.161]
[1743191694212,3.90333297,1879.9,1879.7,5.161]
[1743191694408,9.22277297,1879.9,1879.7,5.161]
[1743191694638,0.05,1879.9,1879.7,5.161]
[1743191694838,0.05,1879.9,1879.8,0.8252]
[1743191695041,0.05,1879.9,1879.8,6.14491]
[1743191696915,0.05,1879.9,1879.8,6.19809616]
[1743191697545,0.05,1879.9,1879.8,6.14491]
[1743191697742,0.05,1879.9,1879.8,7.91228085]
[1743191697913,0.05,1879.9,1879.8,22.41228085]
[1743191698111,0.05,1879.9,1879.8,22.359096]
[1743191698512,0.05,1879.9,1879.8,17.039386]
[1743191698715,0.05,1879.9,1879.8,27.509096]
[1743191698915,0.05,1879.9,1879.8,27.461796]
[1743191700250,0.05,1879.9,1879.8,2.492086]
[1743191700415,6.09664,1879.8,1879.4,5.9714]
[1743191700610,6.09664,1879.8,1879.2,5.32139]
[1743191700611,9.17391297,1879.5,1879.2,0.8034]
[1743191700815,9.17391297,1879.5,1879.0,5.32197]
[1743191700816,9.17461297,1879.3,1879.0,5.178]
[1743191701070,5.32145,1879.2,1878.8,11.44833]
[1743191701368,3.85333297,1879.3,1878.9,5.23021411]
[1743191701519,3.85333297,1879.4,1879.0,11.16656141]
[1743191701832,3.85333297,1879.4,1879.0,5.84478141]
[1743191702036,9.09742,1879.5,1879.1,5.32168]
[1743191702245,3.85333297,1879.4,1879.0,5.84478141]
[1743191702546,9.17418297,1879.4,1879.0,5.84478141]
[1743191702843,14.49525297,1879.4,1879.1,0.58447814]
[1743191703045,5.32117,1879.3,1879.1,0.58447814]
[1743191703246,5.32085,1879.4,1879.0,5.84499141]
[1743191703415,5.32085,1879.4,1879.0,0.52302141]
[1743191703623,5.32085,1879.4,1879.0,5.84487141]
[1743191704619,5.37435,1879.4,1879.0,5.84487141]
[1743191705049,0.0535,1879.4,1879.0,5.84487141]
[1743191705250,0.0535,1879.4,1879.2,6.09497]
[1743191705435,0.0535,1879.4,1879.3,10.49513]
[1743191705635,0.0535,1879.4,1879.3,24.99513]
[1743191707047,0.0535,1879.4,1879.3,5.174]
[1743191707350,0.0535,1879.4,1879.3,10.49513]
[1743191707545,0.0535,1879.4,1879.3,12.154133]
[1743191709330,0.0535,1879.4,1879.1,5.90615714]
[1743191709528,5.37437,1879.4,1879.2,5.168]
[1743191709729,14.52277266,1879.4,1879.2,5.168]
[1743191709939,5.32113,1879.3,1879.1,5.75748714]
[1743191710123,5.32141,1879.2,1879.1,5.75748714]
[1743191710322,5.32141,1879.2,1878.8,0.805]
[1743191710323,9.94126266,1879.2,1878.8,0.805]
[1743191710550,5.32181,1879.1,1878.7,5.3228]
[1743191710848,5.322,1879.0,1878.8,5.175]
[1743191711357,9.14858266,1879.3,1878.8,5.175]
[1743191711545,0.8463,1879.4,1878.9,1.34261495]
[1743191711856,0.0535,1879.4,1879.2,5.32136]
[1743191712054,0.0535,1879.4,1879.2,10.50736]
[1743191712352,0.0535,1879.4,1879.2,11.27919]
[1743191712729,0.0535,1879.4,1879.2,5.9579]
[1743191712934,0.0535,1879.4,1879.3,0.59579]
[1743191713331,6.15056,1879.3,1879.1,5.189]
[1743191713652,0.8294,1879.3,1879.1,5.189]
[1743191713860,6.15055,1879.3,1879.1,5.189]
[1743191714061,5.32152,1879.2,1879.0,5.19]
[1743191714355,5.32152,1879.2,1878.9,5.191]
[1743191714558,5.32152,1879.2,1879.0,0.5191]
[1743191715330,9.97788266,1879.3,1879.0,0.5191]
[1743191715532,9.97788266,1879.3,1879.0,5.89418421]
[1743191715533,4.65675266,1879.3,1879.0,5.89418421]
[1743191715839,5.37435,1879.4,1879.0,5.89418421]
[1743191716360,5.32129,1879.3,1879.0,0.57231421]
[1743191716560,5.37436,1879.4,1879.0,5.89418421]
[1743191716770,5.32116,1879.3,1879.0,0.57231421]
[1743191717961,10.64249,1879.3,1879.0,0.5191]
[1743191718157,5.32144,1879.2,1879.0,0.5191]
[1743191718364,10.64301,1879.2,1878.9,5.191]
[1743191718532,5.32144,1879.2,1878.9,5.191]
[1743191718953,9.14851266,1879.3,1879.0,0.05321426]
[1743191719480,14.46991266,1879.3,1878.9,10.51311]
[1743191719664,5.32151,1879.2,1878.9,6.242311]
[1743191720348,4.59605266,1879.5,1879.0,0.8069]
[1743191720551,5.32151,1879.2,1879.1,5.176]
[1743191721664,3.82735266,1879.3,1879.1,5.176]
[1743191721846,9.91676266,1879.5,1879.1,5.176]
[1743191722041,9.91676266,1879.5,1879.2,0.5176]
[1743191722244,9.91672266,1879.5,1879.2,0.5176]
[1743191722651,5.32031,1879.6,1879.2,5.83885]
[1743191722953,9.15882938,1879.5,1879.2,5.83885]
[1743191723470,14.47966938,1879.5,1879.2,0.5176]
[1743191723767,9.15882938,1879.5,1879.2,0.5176]
[1743191723972,9.15882938,1879.5,1879.2,5.83901]
[1743191724160,9.15882938,1879.5,1879.3,0.583901]
[1743191724360,3.83825938,1879.4,1879.2,0.5176]
[1743191724558,5.32,1879.7,1879.4,5.32077]
[1743191724762,9.15825938,1879.7,1879.4,6.15247]
[1743191724960,9.15825938,1879.7,1879.5,5.178]
[1743191725157,5.32028,1879.6,1879.5,5.178]
[1743191725470,9.15853938,1879.6,1879.5,5.178]
[1743191726991,3.83825938,1879.6,1879.5,5.178]
[1743191727770,5.32028,1879.6,1879.5,5.178]
[1743191728172,9.15833938,1879.7,1879.5,5.178]
[1743191730471,5.32028,1879.6,1879.5,5.178]
[1743191731047,9.15833938,1879.7,1879.5,5.178]
[1743191735077,3.83825938,1879.7,1879.5,5.178]
[1743191735599,9.15834938,1879.7,1879.5,5.178]
[1743191736072,3.83825938,1879.7,1879.5,5.178]
[1743191738453,3.89175938,1879.7,1879.5,5.178]
[1743191738656,0.0535,1879.7,1879.5,12.163607]
[1743191738851,0.0535,1879.7,1879.6,5.32028]
[1743191739051,0.0535,1879.7,1879.6,6.11338]
[1743191740294,0.0535,1879.7,1879.6,6.16656695]
[1743191740497,0.0535,1879.7,1879.6,6.50614777]
[1743191740697,0.0535,1879.7,1879.6,11.37312325]
[1743191749003,0.05,1879.9,1879.8,6.09511]
[1743191752309,0.05,1879.9,1879.8,9.09511]
[1743191763119,0.05,1879.9,1879.8,10.42071]
[1743191767727,0.8006,1879.9,1879.8,5.31971]
[1743191767931,0.8006,1879.9,1879.8,10.41371]
[1743191770303,0.8006,1879.9,1879.8,10.40871]
[1743191771137,0.8006,1879.9,1879.8,10.40671]
[1743191772335,4.63885938,1879.9,1879.7,5.31989]
[1743191772543,10.42217532,1879.9,1879.8,5.091]
[1743191772724,5.10274532,1879.9,1879.8,5.091]
[1743191774002,1.26448594,1879.9,1879.8,5.091]
[1743191774231,0.05,1879.9,1879.8,10.41071]
[1743191775519,4.71665938,1879.9,1879.8,5.091]
[1743191777142,4.71665938,1879.9,1879.3,0.7519]
[1743191777448,6.09089,1879.3,1878.5,5.32324]
[1743191777743,4.60785938,1879.1,1878.9,5.094]
[1743191777913,3.83825938,1879.0,1878.8,10.41754]
[1743191778122,3.83825938,1879.0,1878.9,5.32226]
[1743191778619,0.7696,1879.1,1879.0,5.32197]
[1743191779054,4.59875938,1879.4,1879.1,10.64303]
[1743191779410,4.59875938,1879.4,1879.1,5.32149]
[1743191780242,4.59875938,1879.4,1879.2,5.32135]
[1743191780951,4.59875938,1879.4,1879.1,5.32149]
[1743191781116,4.59875938,1879.4,1879.1,10.64298]
[1743191781445,4.59875938,1879.4,1879.2,10.41431]
[1743191782438,4.59875938,1879.4,1879.2,5.093]
[1743191783370,3.83825938,1879.3,1879.2,5.093]
[1743191784149,3.83825938,1879.3,1879.0,5.32196]
[1743191784150,5.32181,1879.1,1878.9,5.094]
[1743191784327,3.83825938,1879.0,1878.9,5.094]
[1743191784532,0.7966,1878.9,1878.7,10.41758]
[1743191784761,4.63485938,1878.9,1878.7,13.441647]
[1743191784941,0.7966,1878.9,1878.8,5.32254]
[1743191786284,0.7966,1878.9,1878.7,13.441647]
[1743191786501,4.63485938,1878.9,1878.7,13.441647]
[1743191786680,0.7966,1878.9,1878.7,13.441647]
[1743191788590,4.63485938,1878.9,1878.7,5.095]
[1743191788887,4.63485938,1878.9,1878.7,19.595]
[1743191789055,4.63485938,1878.9,1878.7,24.91781]
[1743191789245,4.63485938,1878.9,1878.7,10.41781]
[1743191789709,4.63485938,1878.9,1878.7,5.095]
[1743191790182,4.63485938,1878.9,1878.6,5.32292]
[1743191790391,4.63485938,1878.9,1878.7,5.085]
[1743191790679,4.63485938,1878.9,1878.7,10.40773]
[1743191791245,4.63485938,1878.9,1878.7,5.085]
[1743191791448,0.7966,1878.9,1878.7,10.4078]
[1743191791756,4.63485938,1878.9,1878.7,5.085]
[1743191792142,0.7966,1878.9,1878.7,5.085]
[1743191792585,4.63485938,1878.9,1878.7,5.085]
[1743191794093,4.63485938,1878.9,1878.6,5.32289]
[1743191794278,4.63485938,1878.9,1878.6,10.40189]
[1743191794478,4.63485938,1878.9,1878.6,11.974416]
[1743191795298,4.63485938,1878.9,1878.6,17.297336]
[1743191795460,4.63485938,1878.9,1878.6,11.974416]
[1743191796027,4.63485938,1878.9,1878.6,6.651526]
[1743191796155,4.63485938,1878.9,1878.6,11.974516]
[1743191796355,4.63485938,1878.9,1878.6,11.974446]
[1743191796559,4.63485938,1878.9,1878.7,5.32282]
[1743191796757,0.7966,1878.9,1878.7,12.3752266]
[1743191796984,0.7966,1878.9,1878.8,5.32254]
[1743191797185,0.7966,1878.9,1878.7,7.0524866]
[1743191797391,4.63485938,1878.9,1878.6,15.72516]
[1743191797891,4.63485938,1878.9,1878.6,10.40208]
[1743191798360,4.63485938,1878.9,1878.6,11.974496]
[1743191799385,4.63485938,1878.9,1878.7,5.32281]
[1743191799591,4.63485938,1878.9,1878.6,11.974496]
[1743191799777,3.83825938,1878.8,1878.6,1.572546]
[1743191800087,3.83825938,1878.7,1878.4,5.32366]
[1743191800275,3.83825938,1878.7,1878.5,5.07]
[1743191800276,3.83825938,1878.6,1878.5,5.07]
[1743191800478,9.16111938,1878.7,1878.5,5.07]
[1743191800685,6.1273,1878.5,1878.1,0.8285]
[1743191800875,3.83825938,1878.4,1878.2,5.072]
[1743191801073,15.28918938,1878.5,1878.2,5.073]
[1743191801274,3.83825938,1878.4,1878.2,5.073]
[1743191801473,3.83825938,1878.4,1878.1,10.39736]
[1743191801774,3.83825938,1878.4,1878.1,11.969575]
[1743191805297,3.83825938,1878.4,1878.2,5.067]
[1743191806602,4.64205938,1878.5,1878.2,5.067]
[1743191806909,3.83825938,1878.6,1878.3,5.32383]
[1743191807078,4.66685938,1878.6,1878.2,10.39106]
[1743191807394,3.83825938,1878.5,1878.3,5.32383]
[1743191808600,3.83825938,1878.5,1878.2,13.0373875]
[1743191808895,3.83825938,1878.5,1878.2,18.3614775]
[1743191809996,3.83825938,1878.3,1878.2,5.067]
[1743191810365,3.83825938,1878.4,1878.2,5.067]
[1743191811301,3.83825938,1878.4,1878.2,10.39111]
[1743191812167,3.83825938,1878.4,1878.2,5.32411]
[1743191812368,3.83825938,1878.4,1878.2,10.38011]
[1743191812569,4.92177021,1878.4,1878.2,10.38011]
[1743191813001,4.92177021,1878.4,1878.2,5.056]
[1743191814367,0.8286,1878.6,1878.4,5.3235]
[1743191814669,3.83825938,1878.9,1878.7,5.32262]
[1743191814869,5.32144,1879.2,1878.7,5.32262]
[1743191814870,4.63695938,1879.2,1879.0,5.32189]
[1743191815302,3.83825938,1879.3,1879.1,5.32169]
[1743191815489,3.83825938,1879.3,1879.0,10.38389]
[1743191815490,3.83825938,1879.3,1879.0,15.70567]
[1743191815668,3.83825938,1879.3,1879.1,5.32165]
[1743191816571,3.83825938,1879.3,1879.0,15.70555]
[1743191816813,3.83825938,1879.2,1879.1,5.32169]
[1743191817009,1.86137485,1879.4,1879.2,5.3214]
[1743191817010,3.8382638,1879.4,1879.2,5.3214]
[1743191817373,3.8382638,1879.4,1879.1,6.12839]
[1743191817814,3.8382638,1879.4,1879.2,5.3214]
[1743191820415,4.42e-06,1879.4,1879.2,5.3214]
[1743191820707,4.42e-06,1879.4,1879.2,5.32123]
[1743191821509,3.89175938,1879.4,1879.2,10.64253]
[1743191821703,0.0535,1879.4,1879.2,10.64253]
[1743191821901,0.0535,1879.4,1879.2,5.32123]
[1743191822105,0.0535,1879.4,1879.3,5.32113]
[1743191822640,0.7883,1879.2,1878.7,5.064]
[1743191822816,4.62655938,1878.9,1878.7,5.064]
[1743191823439,0.7883,1878.9,1878.7,5.064]
[1743191824538,4.62655938,1878.9,1878.7,5.064]
[1743191824934,3.83825938,1878.8,1878.5,6.09378]
[1743191825115,9.16155938,1878.6,1878.2,6.89453]
[1743191825317,3.83825938,1878.5,1878.3,5.063]
[1743191825515,9.94985938,1878.6,1878.3,5.063]
[1743191826112,3.83825938,1878.5,1878.3,5.064]
[1743191826318,9.94985938,1878.6,1878.3,5.064]
[1743191828942,15.27318938,1878.6,1878.3,5.064]
[1743191829129,3.83825938,1878.5,1878.3,5.064]
[1743191829623,9.94978938,1878.6,1878.3,5.064]
[1743191830739,3.83825938,1878.4,1878.3,5.064]
[1743191830913,3.83825938,1878.5,1878.3,5.064]
[1743191831112,9.94978938,1878.6,1878.3,5.064]
[1743191833741,6.11153,1878.6,1878.3,10.38794]
[1743191835540,3.83825938,1878.7,1878.5,5.32337]
[1743191835739,0.8157,1878.8,1878.5,5.32337]
[1743191836111,6.13824,1878.8,1878.5,5.32337]
[1743191836709,9.97649938,1878.8,1878.5,5.32337]
[1743191837422,9.97649938,1878.8,1878.4,19.82348]
[1743191837423,9.97649938,1878.8,1878.4,25.14703]
[1743191837617,9.97649938,1878.8,1878.5,2.514703]
[1743191837816,9.16112938,1878.7,1878.4,5.32348]
[1743191838012,3.83825938,1878.6,1878.3,6.0449854]
[1743191838247,9.16148938,1878.6,1878.3,5.7700554]
[1743191839451,9.16148938,1878.6,1878.3,11.0939954]
[1743191840118,9.16148938,1878.6,1878.3,5.049]
[1743191840317,10.22942411,1878.6,1878.3,5.049]
[1743191840634,10.22942411,1878.6,1878.3,10.37292]
[1743191840840,1.20937083,1878.8,1878.4,5.32366]
[1743191841021,0.8157,1878.8,1878.5,5.32327]
[1743191841221,9.97654938,1878.8,1878.5,5.32327]
[1743191841520,3.83825938,1878.7,1878.5,5.32327]
[1743191841717,4.65395938,1878.8,1878.5,11.789813]
[1743191841924,4.65395938,1878.8,1878.5,6.466533]
[1743191843019,4.65395938,1878.8,1878.6,5.32309]
[1743191843243,4.65395938,1878.8,1878.5,6.466533]
[1743191843518,4.70745938,1878.8,1878.5,6.466533]
[1743191844247,0.0535,1878.8,1878.5,6.466503]
[1743191844452,0.0535,1878.8,1878.6,0.6466503]
[1743191844619,0.0535,1878.8,1878.5,5.32322]
[1743191844821,0.0535,1878.8,1878.6,5.32308]
[1743191845120,0.0535,1878.8,1878.7,10.37182]
[1743191845318,0.0535,1878.8,1878.7,11.13912]
[1743191847151,0.0535,1878.8,1878.7,14.13912]
[1743191847369,0.0535,1878.8,1878.7,16.08534]
[1743191854362,1e-05,1878.8,1878.7,16.08534]
[1743191854562,1e-05,1878.8,1878.7,11.03634]
[1743191854754,1e-05,1878.8,1878.7,16.08434]
[1743191855343,1e-05,1878.8,1878.7,13.08434]
[1743191855554,1e-05,1878.8,1878.7,12.31704]
[1743191856657,1e-05,1878.8,1878.7,13.07434]
[1743191860447,1e-05,1878.8,1878.7,8.02634]
[1743191860655,1e-05,1878.8,1878.7,7.26904]
[1743191860864,1e-05,1878.8,1878.7,12.31704]
[1743191867587,1e-05,1878.8,1878.5,5.3233]
[1743191867793,0.8275,1878.7,1878.6,5.048]
[1743191867965,0.8275,1878.7,1878.6,10.37107]
[1743191869187,9.98869938,1878.7,1878.3,5.32374]
[1743191869366,0.8275,1878.5,1878.3,5.048]
[1743191869760,0.8275,1878.5,1878.3,10.37186]
[1743191871180,0.8275,1878.5,1878.3,5.048]
[1743191872972,0.8275,1878.5,1878.3,10.37186]
[1743191873373,0.8275,1878.5,1878.3,5.048]
[1743191873767,0.8275,1878.5,1878.3,10.37193]
[1743191876090,0.8275,1878.5,1878.3,10.37185]
[1743191879796,0.8275,1878.5,1878.3,15.69566]
[1743191880106,0.8275,1878.5,1878.3,10.37181]
[1743191880678,0.7628,1878.3,1877.7,28.167]
[1743191880866,0.7628,1878.3,1877.5,5.3261]
[1743191880867,0.7628,1877.7,1877.5,5.3261]
[1743191881065,4.60105938,1877.7,1877.4,17.302426]
[1743191881271,0.7628,1877.7,1877.4,17.5080926]
[1743191881571,0.7628,1877.7,1877.5,5.32606]
[1743191881769,0.7628,1877.7,1877.5,5.32604]
[1743191882611,4.60105938,1877.7,1877.5,5.32604]
[1743191884192,0.7628,1877.7,1877.6,5.32594]
[1743191884395,3.83825938,1877.8,1877.4,1.8063726]
[1743191884574,1.63718626,1878.2,1877.5,5.049]
[1743191884575,4.59485938,1877.6,1877.5,5.049]
[1743191884984,0.7566,1877.6,1877.5,5.049]
[1743191886220,6.10724,1878.1,1877.6,6.13234]
[1743191886511,9.94549938,1878.1,1877.7,5.3255]
[1743191886805,3.83825938,1878.0,1877.7,5.3255]
[1743191888304,3.83825938,1878.0,1877.6,6.13231]
[1743191888479,3.83825938,1878.0,1877.7,5.32555]
[1743191889602,3.83825938,1877.9,1877.6,7.250441]
[1743191889811,3.83825938,1877.8,1877.7,5.05]
[1743191890189,4.60325938,1877.8,1877.7,5.05]
[1743191890508,5.32568,1877.7,1877.2,6.09621]
[1743191890696,10.65154,1877.7,1877.5,5.05]
[1743191890897,5.32568,1877.7,1877.5,5.05]
[1743191891206,4.60325938,1877.8,1877.5,5.555]
[1743191891512,0.765,1877.8,1877.5,10.88105]
[1743191891711,4.60325938,1877.8,1877.5,0.505]
[1743191891915,9.92864938,1877.8,1877.6,5.05]
[1743191894288,5.32482,1878.0,1877.6,5.05]
[1743191894489,9.94067938,1878.0,1877.7,0.505]
[1743191895000,5.32455,1878.1,1877.7,0.505]
[1743191895001,1.06235587,1878.3,1877.7,0.505]
[1743191895311,9.16123938,1878.7,1878.3,5.32391]
[1743191895522,0.7776,1878.8,1878.3,5.591391]
[1743191895523,3.83825938,1878.5,1878.3,5.591391]
[1743191895727,3.83825938,1878.5,1878.0,6.11237]
[1743191895728,9.97692938,1878.4,1878.0,0.7877]
[1743191896031,5.32398,1878.3,1878.2,5.058]
[1743191896194,6.13867,1878.4,1878.2,5.058]
[1743191897116,3.83825938,1878.3,1878.2,5.058]
[1743191898603,4.65325938,1878.4,1878.2,5.058]
[1743191899316,12.9318838,1878.6,1878.2,5.058]
[1743191899497,4.6087638,1878.6,1878.3,5.32393]
[1743191901109,4.6087638,1878.6,1878.4,5.32366]
[1743191901315,0.77050442,1878.6,1878.4,5.32356]
[1743191901517,4.42e-06,1878.6,1878.4,5.3235]
[1743191901721,4.42e-06,1878.6,1878.5,5.32339]
[1743191906426,0.7504,1878.8,1878.6,5.3229]
[1743191906596,0.7504,1878.8,1878.6,10.3729]
[1743191906997,0.7504,1878.8,1878.6,15.69585]
[1743191907197,0.7504,1878.8,1878.6,10.3729]
[1743191907441,4.58865938,1878.8,1878.6,10.3729]
[1743191907923,4.58865938,1878.8,1878.6,15.6958]
[1743191908124,3.83825938,1878.9,1878.7,5.32282]
[1743191908326,4.63965938,1879.0,1878.7,5.32282]
[1743191908492,3.83825938,1878.9,1878.7,10.6455]
[1743191908828,3.83825938,1878.9,1878.7,5.32268]
[1743191910199,3.83825938,1878.9,1878.7,10.64528]
[1743191910394,3.83825938,1878.9,1878.7,5.3226]
[1743191912929,0.8014,1879.0,1878.7,5.3226]
[1743191913135,0.80080442,1879.2,1878.7,1.03726]
[1743191913304,0.8008,1879.2,1879.0,5.3217]
[1743191913500,0.8008,1879.3,1879.0,10.3707]
[1743191913702,0.8008,1879.3,1879.0,15.69255]
[1743191913896,4.59125938,1879.5,1879.0,5.049]
[1743191914101,4.59125938,1879.5,1879.2,5.32124]
[1743191914401,4.59125938,1879.5,1879.2,10.64247]
[1743191914957,4.59125938,1879.5,1879.3,5.32112]
[1743191915128,4.59125938,1879.5,1879.2,5.32123]
[1743191915331,3.83825938,1879.4,1879.2,5.32123]
[1743191915534,0.753,1879.5,1879.2,5.3212]
[1743191915827,4.59125938,1879.5,1879.3,5.32101]
[1743191916128,3.8382638,1879.6,1879.3,10.64194]
[1743191916428,3.8382638,1879.6,1879.4,5.049]
[1743191922199,3.83825938,1879.5,1879.4,5.049]
[1743191922604,3.8382638,1879.6,1879.4,5.049]
[1743191922954,4.42e-06,1879.6,1879.4,11.93878]
[1743191923232,4.42e-06,1879.6,1879.4,17.2595]
[1743191923434,4.42e-06,1879.6,1879.4,11.93878]
[1743191923832,4.42e-06,1879.6,1879.5,5.32056]
[1743191924314,4.42e-06,1879.6,1879.4,11.93878]
[1743191924514,4.42e-06,1879.6,1879.5,1.193878]
[1743191925099,3.83825938,1879.7,1879.5,6.514438]
[1743191925504,3.83825938,1879.7,1879.5,11.834828]
[1743191925704,3.83825938,1879.8,1879.5,11.834828]
[1743191926630,3.83825938,1879.8,1879.5,6.514268]
[1743191926830,3.83825938,1879.8,1879.6,0.6514268]
[1743191927030,3.83825938,1879.7,1879.6,0.6514268]
[1743191927406,3.83825938,1879.7,1879.5,6.514338]
[1743191928132,3.83825938,1879.7,1879.5,6.514268]
[1743191928434,4.70725938,1879.9,1879.6,5.32028]
[1743191928635,3.88825938,1879.9,1879.6,5.32028]
[1743191928945,9.20768938,1879.9,1879.6,5.32028]
[1743191929103,9.20768938,1879.9,1879.6,6.5826048]
[1743191929438,3.83825938,1879.8,1879.6,1.2623248]
[1743191929637,0.05,1879.9,1879.7,5.31994]
[1743191929810,0.05,1879.9,1879.8,5.046]
[1743191930138,0.05,1879.9,1879.8,11.13731]
[1743191930441,0.05,1879.9,1879.8,12.78835472]
[1743191930839,0.1123147,1880.5,1880.4,5.31801]
[1743191931149,0.1123147,1880.5,1880.4,11.19231]
[1743191934060,0.1123147,1880.5,1880.4,12.333661]
[1743191935361,0.1123147,1880.5,1880.4,12.329661]
[1743191936662,0.1123147,1880.5,1880.4,7.280661]
[1743191936863,0.1123147,1880.5,1880.4,12.327661]
[1743191938455,0.1123147,1880.5,1880.4,11.507361]
[1743191938660,0.1123147,1880.5,1880.4,6.189351]
[1743191939034,0.1123147,1880.5,1880.4,1.145351]
[1743191939240,6.08026,1880.3,1879.9,5.31932]
[1743191939433,6.08026,1880.3,1878.7,5.32276]
[1743191939434,3.83825938,1880.0,1879.7,5.048]
[1743191939749,9.15770938,1879.9,1879.7,5.048]
[1743191939944,3.83825938,1879.8,1879.7,5.057]
[1743191940148,9.15820938,1879.8,1879.7,5.057]
[1743191940349,3.83825938,1879.8,1879.6,5.057]
[1743191940549,9.15815938,1879.8,1879.6,5.057]
[1743191940864,5.31999,1879.7,1879.3,10.69514491]
[1743191941067,14.47846938,1879.7,1879.4,6.12751449]
[1743191941269,9.15824938,1879.7,1879.4,6.12751449]
[1743191941573,9.15803938,1879.8,1879.4,6.12751449]
[1743191941764,5.31978,1879.8,1879.4,11.44826449]
[1743191942271,4.42e-06,1879.9,1879.5,5.32034]
[1743191942574,14.4774038,1879.9,1879.5,6.46512545]
[1743191942871,9.15801938,1879.8,1879.5,1.14478545]
[1743191943076,5.32071,1879.5,1879.1,28.149]
[1743191943241,5.32001,1879.7,1879.3,5.32091]
[1743191943566,6.08959,1879.8,1879.3,5.32091]
[1743191943741,5.32012,1879.7,1879.4,0.532091]
[1743191944142,9.15837938,1879.7,1879.4,0.532091]
[1743191944345,14.47862938,1879.7,1879.2,30.19761]
[1743191944558,9.15886938,1879.5,1879.2,14.5]
[1743191944757,9.15886938,1879.5,1879.0,6.08251]
[1743191944758,9.91885938,1879.4,1879.0,6.08251]
[1743191944988,9.91885938,1879.4,1879.1,5.072]
[1743191945172,5.32147,1879.2,1879.0,5.074]
[1743191945340,5.32147,1879.2,1879.0,5.5814]
[1743191946239,9.15972938,1879.2,1879.0,0.5074]
[1743191946439,9.15972938,1879.2,1878.8,5.074]
[1743191946440,5.32169,1879.1,1878.8,5.074]
[1743191946645,5.32213,1879.0,1878.7,28.152]
[1743191946947,5.32226,1878.9,1878.7,33.226]
[1743191947142,5.32226,1878.9,1878.7,5.074]
[1743191947343,5.32311,1878.6,1878.5,0.786]
[1743191947544,5.32356,1878.5,1878.1,0.8684]
[1743191947872,5.32372,1878.4,1878.1,1.487697]
[1743191948077,9.16181938,1878.5,1878.1,1.487697]
[1743191948243,14.48546938,1878.5,1878.1,1.487697]
[1743191948574,5.32368,1878.4,1878.1,1.487697]
[1743191948871,5.32356,1878.5,1878.1,5.993807]
[1743191949072,5.32356,1878.5,1878.2,0.5993807]
[1743191949073,5.32345,1878.5,1878.2,0.5993807]
[1743191949280,5.32424,1878.2,1878.1,0.05]
[1743191949575,9.16249938,1878.2,1878.1,0.05]
[1743191950042,5.32424,1878.2,1878.1,0.05]
[1743191950241,9.16249938,1878.2,1878.1,0.05]
[1743191950672,8.66249938,1878.2,1878.1,0.05]
[1743191951441,9.4353038,1878.2,1878.1,0.05]
[1743191952375,12.4353038,1878.2,1878.1,0.05]
[1743191953079,12.84330033,1878.2,1878.1,0.05]
[1743191953445,13.88547759,1878.2,1878.1,0.05]
[1743191954278,5.32625,1877.5,1877.1,5.91]
[1743191954575,5.32753,1877.1,1876.6,0.811]
[1743191954776,3.83825938,1876.9,1876.5,10.43599]
[1743191954944,3.83825938,1877.0,1876.6,6.372129]
[1743191955345,3.83825938,1877.2,1876.8,5.32804]
[1743191955546,3.83825938,1877.2,1876.7,5.32833]
[1743191955888,3.83825938,1877.2,1876.8,5.32806]
[1743191956049,3.83825938,1877.2,1876.9,5.32793]
[1743191956244,3.83825938,1877.1,1877.0,10.65503]
[1743191956485,3.83825938,1877.2,1877.0,5.32749]
[1743191956679,3.83825938,1877.1,1877.0,5.112]
[1743191956878,5.32663,1877.4,1877.0,19.612]
[1743191956879,3.8364297,1877.2,1877.0,19.612]
[1743191957077,5.32641442,1877.5,1877.0,24.93959]
[1743191957379,3.8364297,1877.4,1877.1,7.821259]
[1743191957752,3.8364297,1877.4,1877.2,5.32708]
[1743191957984,3.8364297,1877.4,1877.3,14.5]
[1743191958386,0.7787,1878.0,1877.4,5.32651]
[1743191958681,3.8364297,1878.4,1878.2,5.32414]
[1743191958884,0.40194947,1878.5,1878.4,5.32367]
[1743191959087,0.40194947,1878.5,1878.4,14.5]
[1743191959262,0.40194947,1878.5,1878.3,11.29557]
[1743191959459,3.8364297,1878.6,1878.4,5.32367]
[1743191959962,3.8364297,1878.6,1878.5,5.32339]
[1743191960379,3.8364297,1878.8,1878.7,5.32282]
[1743191960584,3.8364297,1878.8,1878.7,10.46682]
[1743191960883,3.8364297,1878.8,1878.7,5.144]
[1743191961053,9.1592097,1878.8,1878.6,5.145]
[1743191961249,0.91592097,1878.7,1878.6,5.145]
[1743191961450,5.32202,1879.0,1878.6,5.145]
[1743191962270,4.42e-06,1879.1,1878.6,10.46807]
[1743191962477,4.42e-06,1879.1,1878.7,5.32273]
[1743191962671,0.0532,1879.0,1878.7,5.3226]
[1743191963272,0.0532,1879.0,1878.7,10.6453]
[1743191963585,0.0532,1879.0,1878.7,6.90163]
[1743191963889,0.0532,1879.0,1878.7,1.57903]
[1743191964062,5.32226,1878.9,1878.3,5.3238]
[1743191964262,9.1591897,1878.8,1878.3,5.155]
[1743191964466,9.1591897,1878.8,1878.3,10.47891]
[1743191964679,5.32276,1878.8,1878.3,10.47891]
[1743191964878,10.64554,1878.8,1878.3,12.139277]
[1743191965196,5.32297,1878.7,1878.3,6.815367]
[1743191965560,5.32366,1878.5,1878.1,5.154]
[1743191965759,5.32366442,1878.5,1878.1,5.154]
[1743191966184,5.32363442,1878.5,1878.1,5.154]